Cogmind - Beta 14 @@@ ROGUE MODE // 2024.12.01 @ 22:18:16 Player: Fangrelle Result: Destroyed by J3-PKE(R) with Subdweller Laser Performance ------------- Evolutions (0) 0 Regions Visited (2) 400 Robots Destroyed (42) 210 Value Destroyed (1102) 1102 Prototype IDs (11) 220 Alien Tech Used (0) 0 Bonus (0) 0 TOTAL SCORE: 1932 Bonus ------- None Cogmind --------- Core Integrity 0/250 Matter 259/300 Energy 95/100 System Corruption 0% Temperature Warm (182) Movement Rolling (180) Ox6 Location -10/Subcaves Parts ------- > --- POWER (1) -------- (None) > --- PROPULSION (2) --- Armored Wheel Armored Wheel > --- UTILITY (2) ------ Cargo Storage Unit > --- WEAPON (2) ------- Improved Light Cannon Battle Cannon > --- INVENTORY (30) --- Spiked Treads Spiked Treads Armored Wheel Armored Wheel High-capacity Storage Unit High-capacity Matter Pod (74) High-capacity Matter Pod (0) High-capacity Matter Pod (0) Medium Armor Plating Scrap Shield Scrap Shield Cobbler Unit EM Shotgun EM Shotgun EM Shotgun Subdweller Laser Barrage Gun Battle Cannon Datajack Mining Laser Plasma Cutter Multitool Flamer Flamer Flamer Scrap Shield Fragment (47) Scrap Shield Fragment (46) Peak State ------------ > --- POWER ------------ Subdweller Power Source > --- PROPULSION ------- Armored Wheel Armored Wheel Armored Wheel Armored Wheel > --- UTILITY ---------- High-capacity Storage Unit Tower Shield > --- WEAPON ----------- EM Shotgun EM Shotgun EM Shotgun EM Shotgun > --- INVENTORY -------- Spiked Treads Spiked Treads Cargo Storage Unit Medium Armor Plating Scrap Shield Scrap Shield Barrage Gun Improved Light Cannon Datajack Mining Laser Plasma Cutter Multitool Flamer Flamer [Rating: 42] Favorites ----------- Power Light Nuclear Core Engine Subdweller Power Source Power Core Light Nuclear Core Propulsion Armored Wheel Treads Light Treads Leg Aluminum Leg Wheel Armored Wheel Utility Medium Armor Plating Device Seismic Detector Storage Huge Storage Unit Protection Medium Armor Plating Weapon Improved Light Cannon Energy Gun EM Shotgun Ballistic Cannon Improved Light Cannon Special Weapon Mining Laser Build | -11 -10 -10 ------- Run | Yrd Mat Sub Slots Evolved . | . . . Power . | . . . Propulsion . | . . . Utility . | . . . Weapon . | . . . Parts Attached 59 | 2 21 36 Power 3 | . 2 1 Engine 2 | . 1 1 Core 1 | . 1 . Reactor . | . . . Propulsion 12 | . 6 6 Treads 8 | . 6 2 Leg . | . . . Wheel 4 | . . 4 Hover . | . . . Flight . | . . . Utility 12 | 1 3 8 Device 2 | 1 1 . Storage 3 | . 1 2 Processor . | . . . Hackware . | . . . Protection 7 | . 1 6 Artifact . | . . . Weapon 32 | 1 10 21 Energy Gun 15 | 1 5 9 Energy Cannon . | . . . Ballistic Gun . | . . . Ballistic Cannon 9 | . 3 6 Launcher . | . . . Special Weapon 8 | . 2 6 Impact Weapon . | . . . Slashing Weapon . | . . . Piercing Weapon . | . . . Special Melee Weapon . | . . . Unidentified Prototypes . | . . . Parts Lost 9 | . 2 7 Power 2 | . . 2 Propulsion . | . . . Utility 4 | . 1 3 Weapon 3 | . 1 2 Highest Loss Streak 2 | . 1 2 To Critical Strikes . | . . . Average Slot Usage (%) 85 | . 98 80 Engine 3 | . 1 4 Core 7 | . 11 6 Treads 16 | . 27 12 Wheel 11 | . . 15 Storage 8 | . 14 6 Protection 12 | . 12 12 Energy Gun 8 | . 3 9 Ballistic Cannon 12 | . 23 9 Special Weapon 3 | . . 4 Peak Build Rating 42 | 8 16 42 Average Rating 21 | 6 14 23 On Entrance 9 | 6 7 16 Naked Turns . | . . . Heaviest Build 152 | 15 100 152 Greatest Support 48 | 20 40 48 Greatest Overweight (x) 6 | . 2 6 Average Overweight (x) 1 | . 1 1 Largest Inventory Capacity 30 | 8 25 30 Average Capacity 17 | 8 21 16 Most Carried 30 | 8 25 30 Average Carried 15 | 7 18 14 Final Capacity 30 | 8 25 30 Final Carried 30 | 7 25 30 Class Distribution -------------------- 73% | Mutant 14% | Hauler-Mutant 11% | Gunner Dominant Class ---------------- Mutant | -10/Materials Mutant | -10/Subcaves Resources | -11 -10 -10 ----------- Run | Yrd Mat Sub Matter Collected 1408 | 210 401 797 Remotely . | . . . Salvage Created 1322 | 238 628 456 Parts 91 | 16 49 26 Haulers Intercepted 2 | . 2 . Recyclers Shooed 1 | . 1 . Parts Field Recycled . | . . . Retrieved Matter . | . . . Parts Self-Destructed 12 | . . 12 Prevented . | . . . Kills | -11 -10 -10 ------- Run | Yrd Mat Sub Combat Hostiles Destroyed 25 | . 12 13 Guns 9 | . 4 5 Cannons 15 | . 8 7 AOE 1 | . . 1 Classes Destroyed 9 | 3 4 2 Worker 3 | 2 1 . Builder 1 | . 1 . Tunneler 7 | 6 1 . Hauler 2 | . 2 . Recycler 1 | 1 . . Watcher 3 | . 3 . Grunt 12 | . 12 . Cobbler 1 | . . 1 Subdweller 13 | . . 13 Best Kill Streak 5 | 5 3 2 Combat Bots Only 3 | . 3 2 Max Kills in Single Turn 1 | 1 1 1 Gunslinging . | . . . Exploded 1 | . . 1 Melee . | . . . Uniques/NPCs Destroyed . | . . . Combat | -11 -10 -10 -------- Run | Yrd Mat Sub Hostile Shots Fired 137 | . 44 93 Missed 30 | . 14 16 Damage Taken 2185 | . 363 1822 Core 267 | . 47 220 Absorbed by Shields . | . . . Core Remaining (%) 100 | 100 . . Volleys Fired 189 | 25 46 118 Largest 4 | 2 2 4 Hottest 180 | 90 105 180 Shots Fired 320 | 50 86 184 Gun 130 | 50 22 58 Cannon 155 | . 60 95 Launcher . | . . . Special 35 | . 4 31 Kinetic 155 | . 60 95 Thermal 67 | 25 11 31 Explosive . | . . . Electromagnetic 98 | 25 15 58 Robot Hit Streak 23 | 17 23 19 Robot Miss Streak 5 | 3 4 5 Penetration Max . | . . . Secondary Targets 1 | . 1 . Max Gunslinging Chain 1 | . 1 . Shots Hit Robots 192 | 32 41 119 Core Hits 78 | 10 25 43 Critical Kills . | . . . Critical Parts Destroyed . | . . . Critical Strikes 10 | 5 4 1 Burn 6 | 4 2 . Blast 2 | . 1 1 Corrupt 2 | 1 1 . Melee Attacks . | . . . Impact . | . . . Slashing . | . . . Piercing . | . . . Sneak Attacks . | . . . Combat Hostiles . | . . . Follow-up Attacks . | . . . Damage Inflicted 3387 | 492 820 2075 Guns 1336 | 401 196 739 Cannons 1895 | . 624 1271 Explosions 156 | 91 . 65 Melee . | . . . Ramming . | . . . Kinetic 1895 | . 624 1271 Thermal 395 | 266 64 65 Explosive . | . . . Electromagnetic 1097 | 226 132 739 Impact . | . . . Slashing . | . . . Piercing . | . . . Highest Corruption . | . . . Average Corruption . | . . . Corruption Purged . | . . . Corruption Blocked . | . . . Overload Shots . | . . . Overflow Damage 23 | 6 13 4 Projectiles 17 | . 13 4 Explosions 6 | 6 . . Melee . | . . . Knockbacks 19 | . 4 15 Impact . | . . . Kinetic 19 | . 4 15 Secondary . | . . . Self-Inflicted Damage . | . . . Shots . | . . . Rammed . | . . . Targets Rammed . | . . . Kicked . | . . . Crushed . | . . . Highest Temperature 329 | 252 252 329 Average Temperature 72 | 100 48 137 Received Heat Transfer 1309 | . 225 1084 Effects 2 | . 2 . Interference 2 | . 2 . Siege Activations . | . . . Robots Corrupted . | . . . Combat Hostiles . | . . . Parts Fried 3 | . . 3 Impact Corruptions . | . . . Robots Melted . | . . . Combat Hostiles . | . . . Parts Melted 6 | 1 3 2 Heat Transferred 1260 | 914 296 50 Parts Sabotaged . | . . . Parts Stolen . | . . . Parts Stripped . | . . . Power Chain Reactions 3 | 2 . 1 Alert | -11 -10 -10 ------- Run | Yrd Mat Sub Peak Influence 248 | 45 248 . Initial 29 | . 29 . Average 67 | 25 71 . Maximum Alert Level 1 | . 1 . Low Security (%) 99 | 100 98 . Level 1 . | . 1 . Level 2 . | . . . Level 3 . | . . . Level 4 . | . . . Level 5 . | . . . High Security . | . . . Max Security . | . . . Squads Dispatched 2 | . 2 . Investigation 2 | . 2 . Extermination . | . . . Reinforcement . | . . . Assault . | . . . Garrison . | . . . Intercept . | . . . Searches Triggered . | . . . Construction Impeded . | . . . Haulers Reinforced . | . . . Active Scanning Responses . | . . . Cargo Convoy Interrupts . | . . . Stealth | -11 -10 -10 --------- Run | Yrd Mat Sub Distress Signals 1 | . 1 . Communications Jammed . | . . . Distress Signals . | . . . Times Spotted 41 | . 22 19 Peak Tracking Total 3 | . 3 2 Tactical Retreats 1 | . . 1 Traps | -11 -10 -10 ------- Run | Yrd Mat Sub Traps Triggered 5 | . 3 2 Indirectly . | . . . Trap Hack Attempts . | . . . Triggered . | . . . Disarmed . | . . . Reprogrammed . | . . . Reused . | . . . Traps Extracted . | . . . Installed 2 | . . 2 Triggered 3 | . . 3 Most Traps Carried 2 | . . 2 Machines | -11 -10 -10 ---------- Run | Yrd Mat Sub Machines Disabled 3 | . 2 1 Max in Single Turn 1 | . 1 1 Machines Repaired . | . . . Machines Dismantled . | . . . Machines Sabotaged . | . . . Overloaded Fab Kills . | . . . Hacking | -11 -10 -10 --------- Run | Yrd Mat Sub Machines Accessed 12 | . 10 2 Terminals 8 | . 8 . Fabricators . | . . . Repair Stations . | . . . Recycling Units 2 | . 2 . Scanalyzers . | . . . Garrison Access . | . . . Total Hacks 46 | . 34 12 Successful 29 | . 17 12 Failed 17 | . 17 . Catastrophic 2 | . 2 . Database Lockouts . | . . . Manual 32 | . 32 . Terminals 30 | . 30 . Fabricators . | . . . Repair Stations . | . . . Recycling Units 4 | . 4 . Scanalyzers . | . . . Garrison Access . | . . . Terminal Hacks 14 | . 2 12 Record 11 | . . 11 Robot Analysis 2 | . 2 . Derelict Proto ID Bank 1 | . . 1 Fabricator Hacks . | . . . Repair Station Hacks . | . . . Recycling Unit Hacks 1 | . 1 . Retrieve Components 1 | . 1 . Scanalyzer . | . . . Garrison Access Hacks . | . . . Unauthorized Hacks 14 | . 14 . Terminals 12 | . 12 . Assimilate 2 | . 2 . Botnet 6 | . 6 . Disrupt 1 | . 1 . Operators 2 | . 2 . Skim 1 | . 1 . Fabricators . | . . . Repair Stations . | . . . Recycling Units 2 | . 2 . Tunnel 2 | . 2 . Scanalyzers . | . . . Garrison Access . | . . . Data Cores Recovered . | . . . Used . | . . . Hacking Detections 8 | . 8 . Full Trace Events . | . . . Feedback Events . | . . . Feedback Blocked . | . . . Robot Schematics Acquired . | . . . Robots Built . | . . . Authchips . | . . . Time . | . . . Total Robot Build Rating . | . . . Part Schematics Acquired . | . . . Parts Built . | . . . Authchips . | . . . Time . | . . . Total Part Build Rating . | . . . Parts Repaired . | . . . Time . | . . . Parts Recycled . | . . . Recycled Matter . | . . . Retrieved Matter . | . . . Retrieved Components 9 | . 9 . Parts Scanalyzed . | . . . Part Schematics Acquired . | . . . Parts Damaged . | . . . Bothacking | -11 -10 -10 ------------ Run | Yrd Mat Sub Used RIF Installer . | . . . Robots Hacked . | . . . Non-combat . | . . . Combat . | . . . Robot Hacks Applied . | . . . Relay Couplers Released . | . . . Fabnet Peak Effective % . | . . . Robots Rewired . | . . . Allies Hacked . | . . . Hacks Repelled . | . . . Allies | -11 -10 -10 -------- Run | Yrd Mat Sub Total Allies . | . . . Largest Group . | . . . Highest-Rated Group . | . . . Highest-Rated Ally . | . . . Total Orders . | . . . Ally Attacks . | . . . Total Damage . | . . . Kills . | . . . Allies Corrupted . | . . . Allies Melted . | . . . Intel | -11 -10 -10 ------- Run | Yrd Mat Sub Robot Analysis Total 2 | . 2 . Derelict Logs Recovered 2 | . . 2 Drone Launches . | . . . Drone Recoveries . | . . . Exploration | -11 -10 -10 ------------- Run | Yrd Mat Sub Turns Passed 9371 | 235 2262 6874 Spaces Moved 5111 | 72 709 4330 Core 1 | . 1 . Treads 2278 | . 708 1570 Legs 72 | 72 . . Wheels 2760 | . . 2760 Hover . | . . . Flight . | . . . Fastest Speed 90 | 120 150 90 Average Speed 164 | 120 280 146 Slowest Speed 340 | 120 320 340 Overloaded Moves . | . . . Propulsion Burnouts . | . . . Robots Hopped . | . . . Cave-ins Triggered . | . . . Exploration Rate (%) 65 | 5 95 95 Regions Visited 2 Branch Regions 1 Pre-discovered Areas 4 | . 2 2 Known Exits Taken . | . . . Unknown Exits Taken 2 | 1 1 . Scrap Searched 10 | . . 10 Spaces Dug 2 | . 2 . Terrain Destroyed 10 | 1 6 3 Melee . | . . . Projectile 7 | . 6 1 AOE 3 | 1 . 2 Terrain Rammed . | . . . Walls Destroyed . | . . . Machines Disabled . | . . . Actions | -11 -10 -10 --------- Run | Yrd Mat Sub Total 5692 | 171 889 4632 Wait 213 | 66 74 73 Move 5109 | 71 708 4330 Hop . | . . . Pick Up 80 | 4 26 50 Fast Attach 28 | 1 12 15 Attach 9 | 1 3 5 Detach 3 | . 1 2 Swap 22 | . 6 16 Drop 37 | 3 13 21 Fire 189 | 25 46 118 Melee . | . . . Ram . | . . . Kick . | . . . Crush . | . . . Escape Stasis . | . . . Rewire . | . . . Trap 2 | . . 2 Miscellaneous . | . . . Route ------- -11/Scrapyard -10/Materials (discovered 5 exits: [*Mat x3] / [*Min] / *Sub) -10/Subcaves (discovered 3 exits: [*Mat x2] / Rec) History --------- Turn | Location | Event 16 | -11/Scrapyard | Discovered new exit (range 2) 236 | -11/Scrapyard | Entered Materials 308 | -10/Materials | Discovered new exit (range 9) 385 | -10/Materials | Build established: Mutant 1203 | -10/Materials | Discovered new exit (range 11) 1366 | -10/Materials | Discovered new exit (range 11) 2228 | -10/Materials | Discovered new exit (range 16) 2489 | -10/Materials | Discovered new exit (range 5) 2498 | -10/Materials | Entered Subcaves 2669 | -10/Subcaves | Shifting Twisted Machinery released Spk. Treads 2692 | -10/Subcaves | Shifting Twisted Machinery released Riot Gun 2785 | -10/Subcaves | A swath of the cavern ceiling suddenly collapsed 2916 | -10/Subcaves | Core integrity fell below 50% 3049 | -10/Subcaves | Learned location of Zion (-6) 3158 | -10/Subcaves | Discovered new exit (range 11) 3243 | -10/Subcaves | Visited 4L-MR0's lab 3858 | -10/Subcaves | Discovered new exit (range 11) 4637 | -10/Subcaves | Visited Clippyterm 4642 | -10/Subcaves | Identified exit to Recycling 4783 | -10/Subcaves | Core integrity fell below 20% 5291 | -10/Subcaves | Found Tower Shield 5292 | -10/Subcaves | Attached Tower Shield, gained temporary slots: Power, Propulsion x2, Utility x2, Weapon x2 5981 | -10/Subcaves | Ambushed by Subdweller buried in earth 6075 | -10/Subcaves | Shifting Twisted Machinery released Mak. Flight Unit 6091 | -10/Subcaves | A swath of the cavern ceiling suddenly collapsed 6203 | -10/Subcaves | Met a Zionite searching for "candidates" 6913 | -10/Subcaves | Shifting Twisted Machinery released Battle Cannon 7006 | -10/Subcaves | Shifting Twisted Machinery released Sub. Monowheel 7091 | -10/Subcaves | Shifting Twisted Machinery released Barrage Gun 7160 | -10/Subcaves | Build established: Gunner 8267 | -10/Subcaves | Build established: Hauler-Mutant 9358 | -10/Subcaves | A Subdweller sparked back to life 9358 | -10/Subcaves | A Subdweller sparked back to life 9372 | -10/Subcaves | Destroyed by J3-PKE(R) with Subdweller Laser Last Messages --------------- 08054_ Acquired EM Shotgun. 08056_ Acquired Battle Cannon. 08067_ Subatomizers dissect the Corrupted Disposable Heat Sink. 08082_ Acquired Hcp. Matter Pod. 08112_ Acquired Flamer. 08135_ Subatomizers dissect the Corrupted Disposable Heat Sink. 08345_ Acquired 6 matter. 08356_ Acquired 29 matter. 08376_ Acquired 11 matter. 08390_ Acquired 10 matter. 08613_ Dropped EM Shotgun. 08614_ Acquired Battle Cannon. 08621_ Subatomizers dissect the EM Shotgun. 09178_ Acquired 31 matter. 09286_ Acquired 7 matter. 09358_ J3-PKE(R) creaks and sparks as it begins to move. 09358_ SD-CF4(R) creaks and sparks as it begins to move. 09358_ Critical hit (Meltdown: +270). 09362_ Broken Sub. Power Source destroyed. 09362_ Critical hit (Meltdown: +260). Map ----- +----------------------------------------------------+ | ?????????????????????????????????????????????????? | | ?????????????????????????????????????????????????? | | ?????????????????????????????????????????????????? | | ?????????????????????????????????????????????????? | | ?????????????????????????????????????????????????? | | ?????????????????????????????????????????????????? | | ????????######???????????????????????????????????? | | ########? ##??????????????????????????????????? | | """"#" #?# #??????????????????????????????????? | | "X" ### #??????????????????????????????????? | | #### #??????????????????????????????????? | | #### #??????????????????????????????????? | | #######"# ####???????????????????????????????# | | ???#### ## #???????????????????????????????# | | ####"" "## #???????????????????????????????# | | ### #???????????????????????????????# | | ## ## ## #??????????????????????????????? | | # "#### ##?# ###????????????????????######????? | | " #### #???##????#######???????????#% |"##???? | | " ## ##????????# "#???????????##| & #???? | | ##???????#" #????????????#### #???? | | ###### ##??????# " #????????????#%% "#???? | | #### #??????? "#?####????##### ###???? | | #?#######?& %### #????# [ #####? | | ### #<##R## #????# #? | | #%@ % ####??# #? | | ## ### % ## ##?### ## | | ####?#### #???## & ## | | #???????# ## ## # #### #????# ##### | | ##??????# ##### ######## #????## #?# | | #?????## #??# # ## ##??### ### | | ##????## #### ## #??# ## | | ##????## ####### ###?## | | ##???## #???### # ### ### # | | ##??# < #?### ##?# #### ## # | | #### #?# #?# ##??## ## | | ### ## #????# #? | | # #####?# ## ## #????# ### # | | ##### ###?????## ###### ### ##??## #?####### # | | ????#####????????###??????##?# #### #???????#### | | ?????????????????????????????# ##??????????? | | ?????????????????????????????#########???????????? | | ?????????????????????????????????????????????????? | | ?????????????????????????????????????????????????? | | ?????????????????????????????????????????????????? | | ?????????????????????????????????????????????????? | | ?????????????????????????????????????????????????? | | ?????????????????????????????????????????????????? | | ?????????????????????????????????????????????????? | | ?????????????????????????????????????????????????? | +----------------------------------------------------+ Best States ------------- Heat Dissipation 25 Energy Generation 15 Energy Capacity 250 Matter Stores 300 Matter Capacity 300 Sight Range 16 Terrain Scan Density 10 Armor Coverage 2000 Evasion (%) 55 Recoil Reduction 2 Item Schematics ----------------- None Robot Schematics ------------------ None Fabricated ------------ Nothing Alien Tech Used ----------------- None Achievements -------------- None Challenges ------------ None Game ------ Seed ChainCryofiberDesublimator Manual? 0 Play Time 00:37:29 Cumulative 151.6 hours Start 2024.12.01 @ 21:37:57 End 2024.12.01 @ 22:18:16 Sessions 7 Manual Loads 0 Difficulty Rogue Special Mode None Game No. 283 Rogue 283 Adventurer 0 Explorer 0 Win Type - Total 0 Types 0/0/0/0/0/0/0/0/0 Lore% 45 Gallery% 41 Achievement% 36 Wizard Run 0 Options --------- Layout 0 ASCII 0 Keyboard 0 Movement Mouse Keybinds 0 Fullscreen 1 Font 24/Smallcaps Map View 91x25 Zoom Use 81% Tactical HUD 1 Map Filters NONE Filters NONE Steam 1 RUN: a1319ed5-75d7-4446-8dc4-9e20e888a468